[Event "10th Iberoamericano-ch 2024"]
[Site "Linares"]
[Date "2024.09.27"]
[Round "4.8"]
[White "Santos Flores, Alberto"]
[Black "Gines Esteo, Pedro Antonio"]
[Result "1/2-1/2"]
[ECO "D46"]
[WhiteElo "2168"]
[BlackElo "2477"]
[Annotator "TA"]
[PlyCount "67"]
[EventDate "2024.09.25"]
[EventType "swiss"]
[EventCountry "ESP"]
[SourceTitle "playchess.com"]
[Source "ChessBase"]
[SourceQuality "1"]
[TimeControl "5400+30"]

{[%evp 16,67,20,35,49,53,62,55,51,47,45,47,51,47,49,24,28,25,25,26,31,0,0,0,0,0,0,-82,-4,-60,0,-5,0,0,0,0,0,0,0,0,0,0,0,0,0,0,4,4,47,34,35,8,22,0]} 1. d4 {[%emt 0:00:04]} Nf6 {[%emt 0:00:38]} 2. c4 {[%emt 0:00:03]} e6 {[%emt 0:00:14]} 3. Nf3 {[%emt 0:00:04]} d5 {[%emt 0:06:38]} 4. Nc3 {[%emt 0:00:16]} c6 {[%emt 0:22:27]} 5. e3 {[%emt 0:00:18]} Nbd7 {[%emt 0:01:14]} 6. Bd3 {[%emt 0:00:06]} Bd6 {[%emt 0:01:01]} 7. e4 {[%emt 0:00:21]} dxe4 {[%emt 0:08:51]} 8. Nxe4 {[%emt 0:00:06]} Nxe4 {[%emt 0:00:05]} 9. Bxe4 {[%emt 0:00:04]} Qa5+ {[%emt 0:06:52]} 10. Bd2 {[%emt 0:01:04]} Bb4 {[%emt 0:00:07]} 11. a3 {[%emt 0:03:57]} Bxd2+ {[%emt 0:01:30] White is slightly better.} 12. Qxd2 {[%emt 0:00:02]} Qxd2+ {[%emt 0:00:13]} 13. Kxd2 {[%emt 0:00:02]} c5 {[%emt 0:05:59]} 14. b4 {[%emt 0:10:40]} Nf6 {[%emt 0:00:51]} 15. Ke3 {[%emt 0:19:52]} cxd4+ {[%emt 0:24:08]} 16. Nxd4 {[%emt 0:00:05]} Nxe4 {[%emt 0:00:06]} 17. Kxe4 {[%emt 0:00:04]} Bd7 {[%emt 0:00:14]} 18. c5 {[%emt 0:03:08]} O-O-O {[%emt 0:07:07]} 19. Rhd1 {[%emt 0:29:27]} Ba4 {[%emt 0:02:14]} 20. Rd2 {[%emt 0:00:15]} Rd5 {[%emt 0:03:40]} 21. Raa2 {[%emt 0:02:45]} (21. Nf3 $11 {remains equal.}) 21... Rhd8 {[%emt 0:01:39]} (21... g5 $17 {White must now prevent ...f5+.} 22. f4 gxf4) 22. Ke3 {[%emt 0:02:13]} ({White should play} 22. f4 $11) 22... Kc7 {[%emt 0:04:00]} (22... Re5+ $15 23. Kf4 Rh5) 23. Nf3 {[%emt 0:02:33]} f6 {[%emt 0:01:37]} 24. Rxd5 {[%emt 0:02:14]} Rxd5 $11 {[%emt 0:00:01][%mdl 4096] Endgame. KRB-KRN} 25. Nd4 {[%emt 0:01:00]} Re5+ {[%emt 0:01:02]} 26. Kd3 {[%emt 0:00:26]} Bd7 {[%emt 0:00:29]} 27. f4 {[%emt 0:00:32]} Rh5 {[%emt 0:00:23]} 28. g3 {[%emt 0:01:04]} e5 {[%emt 0:00:38]} 29. fxe5 {[%emt 0:00:09]} Rxe5 {[%emt 0:00:29]} 30. Re2 {[%emt 0:01:20]} Rxe2 {[%emt 0:00:30]} 31. Kxe2 {[%emt 0:00:02]} Kd8 {[%emt 0:00:31]} 32. Kd3 {[%emt 0:00:35]} a6 {[%emt 0:00:30]} 33. Ke4 {[%emt 0:00:57] And now Kd5 would win.} Bc6+ {[%emt 0:00:29]} 34. Kf4 {[%emt 0:11:01] Weighted Error Value: White=0.16 (very precise) /Black=0.12 (very precise) .  Mistake:       	White=2     	Black=2      Inaccurate:     	White=2     	Black=1      OK:         	White=7     	Black=12     Best:        	White=1     	---} 1/2-1/2

[Event "10th Iberoamericano-ch 2024"]
[Site "Linares"]
[Date "2024.09.27"]
[Round "4.9"]
[White "Fernandez Guillen, Ernesto J."]
[Black "Ladron De Guevara Pinto, Paolo"]
[Result "1/2-1/2"]
[ECO "C54"]
[WhiteElo "2463"]
[BlackElo "2371"]
[Annotator "TA"]
[PlyCount "89"]
[EventDate "2024.09.25"]
[EventType "swiss"]
[EventCountry "ESP"]
[SourceTitle "playchess.com"]
[Source "ChessBase"]
[SourceQuality "1"]
[TimeControl "5400+30"]

{[%evp 40,89,-190,-189,-170,-193,-172,-335,-327,-346,-361,-620,-650,-747,-761,-789,-745,-829,-991,-926,-864,-789,-556,-556,-433,-679,-206,-193,0,0,0,0,0,0,0,0,0,0,0,0,0,0,0,0,0,0,0,0,0,0,0,0]} 1. e4 {[%emt 0:10:34]} e5 {[%emt 0:01:10]} 2. Nf3 {[%emt 0:00:28]} Nc6 {[%emt 0:00:08]} 3. Bc4 {[%emt 0:00:04]} Nf6 {[%emt 0:00:49]} 4. d3 {[%emt 0:06:26]} Bc5 {[%emt 0:01:12]} 5. c3 {[%emt 0:01:03]} d6 {[%emt 0:01:17]} 6. a4 {[%emt 0:06:22] C54: Giuoco Piano: 4 c3 Nf6, main lines with 5 d4 and 5 d3.} a6 {[%emt 0:00:16]} 7. b4 {[%emt 0:08:36]} Ba7 {[%emt 0:00:47]} 8. Bg5 {[%emt 0:00:07]} h6 {[%emt 0:00:16]} 9. Bh4 {[%emt 0:00:07]} g5 {[%emt 0:07:56]} 10. Bg3 {[%emt 0:00:57]} Qe7 {[%emt 0:24:36]} 11. Nbd2 {[%emt 0:06:50]} Nh5 {[%emt 0:10:15]} 12. a5 {[%emt 0:27:59]} Qf6 {[%emt 0:02:41]} 13. h3 $146 {[%emt 0:11:39]} ({Predecessor:} 13. Qb3 Ne7 14. O-O-O O-O 15. Ne1 c6 16. Nc2 Rd8 17. d4 exd4 18. cxd4 d5 19. e5 {1-0 Lagarde,M (2626)-Rodshtein,M (2584) EU-Cup 38th Durres 2023 (4.2)}) 13... Ne7 {[%emt 0:06:55]} 14. Rf1 {[%emt 0:13:12]} Ng6 {[%emt 0:12:43]} 15. Nh2 {[%emt 0:00:09]} Nhf4 {[%emt 0:02:17]} 16. Bxf4 {[%emt 0:01:56]} gxf4 {[%emt 0:04:40]} 17. Nhf3 {[%emt 0:01:10]} Rg8 {[%emt 0:02:39]} 18. Qb3 {[%emt 0:00:31]} Nf8 {[%emt 0:09:32]} 19. g4 {[%emt 0:00:12]} fxg3 {[%emt 0:03:00]} 20. fxg3 {[%emt 0:00:11]} Bxh3 {[%emt 0:00:04]} 21. O-O-O {[%emt 0:01:46]} (21. Nxe5 $2 Bxf1 (21... Qxe5 22. Bxf7+ Kd8 23. Bxg8 $17) 22. Bxf7+ Ke7 23. Bxg8 dxe5 $19) 21... Bxf1 {[%emt 0:03:40]} (21... Rxg3 22. Nd4 Qh8 (22... Bxf1 $2 23. Rxf1 $18) 23. Bb5+ Nd7 (23... axb5 $2 24. Qxf7+ Kd8 25. Qxf8+ Qxf8 26. Rxf8+ Kd7 27. Rxa8 $18) 24. Qxf7+ Kd8 25. Bxd7 Bxd7 26. Rg1 $16 (26. Ne6+ Bxe6 27. Qxe6 Qe8 $11)) 22. Rxf1 {[%emt 0:00:01]} Be3 $1 {[%emt 0:00:18]} (22... Rxg3 $2 23. Nd4 $18) 23. Kc2 $2 {[%emt 0:00:49]} (23. Nh2 Bxd2+ 24. Kxd2 Qg5+ 25. Kd1) 23... Rxg3 $19 {[%emt 0:00:43]} 24. Nd4 {[%emt 0:00:38]} Bf4 {[%emt 0:00:27]} 25. Nf5 $2 {[%emt 0:00:38]} (25. Ne2 Rg2 26. Nxf4 exf4 27. e5 dxe5 (27... Qxe5 $2 28. Bxf7+ Kd7 29. Qd5 $19) 28. Bd5 Rxd2+ 29. Kxd2) 25... Rg2 $19 {[%emt 0:00:05]} 26. Rxf4 {[%emt 0:00:04]} exf4 {[%emt 0:00:06]} 27. b5 {[%emt 0:00:05]} Nd7 {[%emt 0:02:06]} 28. bxa6 {[%emt 0:00:33]} bxa6 {[%emt 0:01:46]} 29. Qb7 {[%emt 0:00:36]} Rd8 {[%emt 0:00:12]} 30. Qxc7 {[%emt 0:00:51]} f3 {[%emt 0:01:00]} 31. Nxd6+ {[%emt 0:00:32]} Kf8 {[%emt 0:00:07]} 32. Nxf7 {[%emt 0:00:33] [#]} (32. Nb7 $142 Rxd2+ 33. Kxd2) 32... Rxd2+ $2 {[%emt 0:01:43]} (32... Rb8 $1 {[%cal Og2d2] aiming for ...Rxd2+!} 33. d4 (33. Qxd7 Rxd2+ 34. Kxd2 Qf4+ 35. Kc2 Qh2+ 36. Kc1 f2 37. d4 Qg1+ 38. Kc2 Qb1+ 39. Kd2 Rb2+ 40. Ke3 Qc1+ 41. Kf3 f1=R+ 42. Bxf1 Qxf1+ 43. Kg4 Rg2+ 44. Kh4 Qf4+ 45. Kh5 Qh2+) (33. Qd6+ Qxd6) 33... Qh4 34. Qd6+ Kg7 35. Qxd7 Rxd2+ 36. Kxd2 Qf2+ 37. Kc1 Qg1+ 38. Kc2 Qb1+ 39. Kd2 Rb2+ 40. Ke3 Qc1+ 41. Kxf3 Qh1+ 42. Kf4 Qh2+ 43. Kf5 Qh3+ 44. Ke5 Qxd7) 33. Kxd2 $19 {[%emt 0:00:07] [#]} f2 $2 {[%emt 0:00:03]} (33... Rb8 $1 $19 {Threatens to win with ...f2.} 34. d4 (34. Qxd7 Qf4+ 35. Kc2 Qh2+ 36. Kc1 f2 37. d4 Qh1+ 38. Kc2 Qb1+ 39. Kd2 Rb2+ 40. Ke3 Qc1+ 41. Kf3 f1=Q+ 42. Bxf1 Qxf1+ 43. Kg4 Rg2+ 44. Kh4 Qf4+ 45. Kh5 Qh2+) 34... Qh4) 34. Nxd8 $11 {[%emt 0:01:07]} f1=Q {[%emt 0:00:25]} 35. Ne6+ {[%emt 0:00:11]} Ke7 {[%emt 0:00:25]} 36. Qd8+ {[%emt 0:00:17]} Kd6 $1 {[%emt 0:00:08]} (36... Kf7 37. Nf4+ (37. Qxd7+ Kg6 $11) (37. Qxd7+ Kg6 $11)) 37. Qc7+ {[%emt 0:00:10]} Ke7 {[%emt 0:00:13]} 38. Qd8+ {[%emt 0:00:07]} Kd6 $1 {[%emt 0:01:01]} ({Worse is} 38... Kf7 39. Nf4+ (39. Qxd7+ Kg6 $11) (39. Qxd7+ Kg6 $11)) 39. e5+ {[%emt 0:01:41]} Qxe5 {[%emt 0:00:37]} 40. Qc7+ {[%emt 0:00:15]} Ke7 {[%emt 0:00:05]} 41. Qd8+ {[%emt 0:00:03]} Kd6 $1 {[%emt 0:01:50]} ({But not} 41... Kf7 $2 42. Qxd7+ Kg6 43. Qe8+ (43. Bxa6 $2 Qee2#) 43... Kh7 44. Nf8+ $18 (44. Bxa6 $2 Qee2#) (44. Bxa6 $2 Qee2#)) 42. Qc7+ {[%emt 0:00:12]} Ke7 {[%emt 0:00:02]} 43. Qd8+ {[%emt 0:00:06]} Kd6 $1 {[%emt 0:01:01]} ({Don't blunder} 43... Kf7 $2 44. Qxd7+ Kg6 45. Qe8+ (45. Bxa6 $2 Qee2#) 45... Kh7 46. Nf8+ $18 (46. Bxa6 $2 Qee2#) (46. Bxa6 $2 Qee2#)) 44. Qc7+ {[%emt 0:00:07]} Ke7 {[%emt 0:00:04]} 45. Qd8+ 1/2-1/2

[Event "10th Iberoamericano-ch 2024"]
[Site "Linares"]
[Date "2024.09.27"]
[Round "4.10"]
[White "Oro, Faustino"]
[Black "Leyva, Hector"]
[Result "1/2-1/2"]
[ECO "B98"]
[WhiteElo "2434"]
[BlackElo "2296"]
[Annotator "TA"]
[PlyCount "144"]
[EventDate "2024.09.25"]
[EventType "swiss"]
[EventCountry "ESP"]
[SourceTitle "playchess.com"]
[Source "ChessBase"]
[SourceQuality "1"]
[TimeControl "5400+30"]

{[%evp 25,144,0,8,0,0,4,11,18,13,0,32,43,35,0,0,0,0,0,0,-47,-51,-55,-40,-66,-33,-81,0,0,0,0,0,-11,3,7,7,0,0,0,0,0,0,0,0,0,0,0,0,0,7,0,0,0,0,0,10,5,27,0,8,0,0,0,48,17,17,0,17,17,17,0,17,0,0,0,17,17,17,10,17,17,17,17,24,0,0,0,17,14,21,12,39,12,12,12,12,0,16,11,11,0,0,0,0,0,38,0,0,0,0,0,0,0,0,-24,0,0,0,-10,0,0,0]} 1. e4 {[%emt 0:00:02]} c5 {[%emt 0:01:37]} 2. Nf3 {[%emt 0:00:08]} d6 {[%emt 0:00:05]} 3. d4 {[%emt 0:00:03]} Nf6 {[%emt 0:00:23]} 4. Nc3 {[%emt 0:00:07]} cxd4 {[%emt 0:00:03]} 5. Nxd4 {[%emt 0:00:07]} a6 {[%emt 0:00:02]} 6. Bg5 {[%emt 0:00:09]} e6 {[%emt 0:00:04]} 7. f4 {[%emt 0:00:05]} h6 {[%emt 0:00:17]} 8. Bh4 {[%emt 0:00:07]} Be7 {[%emt 0:00:08]} 9. Qf3 {[%emt 0:00:56]} Qc7 {[%emt 0:00:14]} 10. O-O-O {[%emt 0:01:00]} Nbd7 {[%emt 0:00:09]} 11. Bd3 {[%emt 0:00:11]} g5 {[%emt 0:00:25]} 12. fxg5 {[%emt 0:00:06]} Ne5 {[%emt 0:00:06]} 13. Qe2 {[%emt 0:00:10]} Nfg4 {[%emt 0:00:29]} 14. Kb1 {[%emt 0:00:08]} hxg5 {[%emt 0:00:33]} 15. Bg3 {[%emt 0:00:23]} Bd7 {[%emt 0:00:32]} 16. h3 {[%emt 0:00:59]} Nf6 {[%emt 0:00:29]} 17. Qd2 {[%emt 0:00:13]} Nh5 {[%emt 0:05:24]} 18. Bh2 {[%emt 0:05:33]} O-O-O {[%emt 0:00:49]} 19. Nce2 {[%emt 0:07:20]} Rdg8 {[%emt 0:02:22]} 20. Nf3 {[%emt 0:08:16]} Nxf3 {[%emt 0:43:41]} 21. gxf3 {[%emt 0:00:07]} e5 {[%emt 0:00:09][%cal Oh5f4]} 22. Rdg1 {[%emt 0:14:37]} (22. Nc3 $11 Nf6 23. Bg1) 22... Nf4 $15 {[%emt 0:01:32]} 23. Bxf4 {[%emt 0:01:19]} exf4 {[%emt 0:07:40]} 24. Nc3 {[%emt 0:12:31]} Be6 {[%emt 0:00:23][%cal Oc7a5]} 25. Be2 {[%emt 0:01:02]} (25. Nd5 $15 {was preferrable.} Bxd5 26. exd5) 25... Bf6 {[%emt 0:02:38]} (25... Bxh3 26. Nd5 Qd8 27. Bf1 Bxf1 28. Nxe7+ (28. Rxf1 Bf6 $15) 28... Qxe7 29. Qc3+ (29. Rxf1 Qe5 $17) 29... Kd7 30. Rxh8 Rxh8 31. Qxh8 $18) (25... Rxh3 26. Rxh3 Bxh3 27. Nd5 $11) ({Black should play} 25... Qa5 $17 26. Rd1 Bf6 (26... Bxh3 27. Qd3 $17) (26... Rxh3 27. Rxh3 Bxh3 28. Bc4 $15)) 26. Nd5 $11 {[%emt 0:00:46]} Bxd5 {[%emt 0:00:11]} 27. Qxd5 {[%emt 0:00:05]} Be5 {[%emt 0:00:14][%cal Oh8h3]} 28. Qb3 {[%emt 0:02:36]} Rg7 {[%emt 0:09:54]} 29. Bc4 {[%emt 0:00:44]} Rh6 {[%emt 0:01:24][%cal Od6d5]} 30. Bd5 {[%emt 0:00:21]} Kb8 {[%emt 0:01:07]} 31. a3 {[%emt 0:04:15]} Ka7 {[%emt 0:01:54]} 32. c3 {[%emt 0:00:48]} Rhh7 {[%emt 0:00:41]} 33. Ka2 {[%emt 0:01:20]} Qb6 {[%emt 0:02:41]} 34. Qd1 {[%emt 0:01:52]} Rh5 {[%emt 0:01:05]} 35. Rg2 {[%emt 0:07:40]} Rgh7 {[%emt 0:00:42]} 36. Rgh2 {[%emt 0:00:21]} Rh4 {[%emt 0:02:15]} 37. Qf1 {[%emt 0:05:47]} Qc5 {[%emt 0:00:39]} 38. Qg2 {[%emt 0:01:11]} Bf6 {[%emt 0:01:37]} 39. Rd1 {[%emt 0:02:47]} Qc8 {[%emt 0:06:31]} 40. Bb3 {[%emt 0:02:52]} Qc7 {[%emt 0:03:19]} 41. Rhh1 {[%emt 0:01:05]} Qb6 {[%emt 0:02:22]} 42. Rd5 {[%emt 0:03:10]} Be5 {[%emt 0:00:35][%cal Og5g4]} 43. Rd3 {[%emt 0:02:07]} f6 {[%emt 0:01:17]} (43... Qd8 $11 {deserves consideration.}) 44. Qf1 {[%emt 0:00:38]} Re7 {[%emt 0:00:23]} 45. Rh2 {[%emt 0:00:56]} Rh8 {[%emt 0:00:30]} 46. Bd5 {[%emt 0:00:42]} Kb8 {[%emt 0:00:55]} 47. Qd1 {[%emt 0:00:45]} Ka7 {[%emt 0:00:19]} 48. Qc2 {[%emt 0:00:36]} Qg1 {[%emt 0:01:15]} 49. Rdd2 {[%emt 0:00:36]} Qe3 {[%emt 0:00:17]} (49... Qg3 $5) 50. Qd1 {[%emt 0:00:48]} Qb6 {[%emt 0:00:21]} 51. Bb3 {[%emt 0:00:29]} Qe3 {[%emt 0:00:28]} 52. Rh1 {[%emt 0:00:55]} Qb6 {[%emt 0:00:08]} 53. Qf1 {[%emt 0:00:48]} Qc7 {[%emt 0:00:24]} 54. Rd5 {[%emt 0:00:35]} Reh7 {[%emt 0:00:23]} 55. Rd2 {[%emt 0:00:46]} Qc8 {[%emt 0:00:18] Inhibits Be6.} 56. Rdh2 {[%emt 0:00:22][%cal Oh3h4]} Kb8 {[%emt 0:00:17]} 57. Bd5 {[%emt 0:00:42]} Ka7 {[%emt 0:02:04]} 58. Kb1 {[%emt 0:03:20]} (58. h4 {seems wilder.} Rh5 59. hxg5 Rxh2 60. Rxh2 Rxh2 61. Qg1+) 58... Kb8 {[%emt 0:00:32]} 59. Qg2 {[%emt 0:00:24]} Rh4 {[%emt 0:00:39]} 60. Qf1 {[%emt 0:00:43]} R4h7 {[%emt 0:00:14]} 61. Bb3 {[%emt 0:00:42]} Ka8 {[%emt 0:00:24]} 62. a4 {[%emt 0:00:51]} Kb8 {[%emt 0:00:39]} 63. Bd5 {[%emt 0:01:02]} Qd7 {[%emt 0:00:27]} 64. Qc4 {[%emt 0:01:37]} Qc7 {[%emt 0:00:40]} 65. Qf1 {[%emt 0:02:22]} Qd7 {[%emt 0:00:19]} 66. Bb3 {[%emt 0:00:18]} Qc8 {[%emt 0:00:28]} 67. Qg2 {[%emt 0:01:23]} Rh4 {[%emt 0:00:32]} 68. Bc2 {[%emt 0:00:23]} Qc4 {[%emt 0:00:22]} 69. Qf2 {[%emt 0:00:42]} Qc8 {[%emt 0:00:38]} 70. Qf1 {[%emt 0:00:43] The position is equal.} Qe6 {[%emt 0:00:16]} 71. Bd1 {[%emt 0:01:21] White is weak on the dark squares} R8h7 {[%emt 0:00:38]} 72. Qg2 {[%emt 0:00:41]} Rh8 {[%emt 0:00:17] Weighted Error Value: White=0.09 (flawless) /Black=0.08 (flawless) .  Mistake:       	White=2     	Black=2      Inaccurate:     	White=6     	Black=4      OK:         	White=12    	Black=27     Best:        	White=1     	Black=1} 1/2-1/2

[Event "10th Iberoamericano-ch 2024"]
[Site "Linares"]
[Date "2024.09.27"]
[Round "4.11"]
[White "Lopez Martinez, Josep Manuel"]
[Black "Noboa Silva, Kevin"]
[Result "1-0"]
[ECO "D36"]
[WhiteElo "2448"]
[BlackElo "2270"]
[Annotator "RC"]
[PlyCount "133"]
[EventDate "2024.09.25"]
[EventType "swiss"]
[EventCountry "ESP"]
[SourceTitle "playchess.com"]
[Source "ChessBase"]
[SourceQuality "1"]
[TimeControl "5400+30"]

1. d4 {[%emt 0:09:36]} d5 {[%emt 0:00:30]} 2. c4 {[%emt 0:00:18]} e6 {[%emt 0:00:16]} 3. Nc3 {[%emt 0:00:14]} Nf6 {[%emt 0:01:03]} 4. cxd5 {[%emt 0:00:11]} exd5 {[%emt 0:00:36]} 5. Bg5 {[%emt 0:00:28]} c6 {[%emt 0:01:06]} 6. Qc2 {[%emt 0:01:44]} h6 {[%emt 0:03:05]} 7. Bh4 {[%emt 0:02:47]} Be7 {[%emt 0:00:56]} 8. e3 {[%emt 0:00:13]} O-O {[%emt 0:00:35]} 9. Bd3 {[%emt 0:00:37]} Re8 {[%emt 0:00:27]} 10. Nge2 {[%emt 0:01:07]} a5 {[%emt 0:01:09]} 11. O-O {[%emt 0:03:01]} Na6 {[%emt 0:01:00]} 12. a3 {[%emt 0:00:11]} Nc7 {[%emt 0:00:35]} 13. f3 {[%emt 0:01:00]} Ne6 {[%emt 0:03:25]} 14. Bf2 {[%emt 0:01:21]} c5 {[%emt 0:03:08]} 15. dxc5 {[%emt 0:00:16]} Bxc5 {[%emt 0:00:23]} 16. Rad1 {[%emt 0:00:14]} Qe7 {[%emt 0:33:56]} 17. Kh1 {[%emt 0:06:05]} Bd7 {[%emt 0:02:34]} 18. Bb5 {[%emt 0:12:52]} Red8 {[%emt 0:07:55]} 19. Bxd7 {[%emt 0:07:46]} Qxd7 {[%emt 0:03:00]} 20. Bh4 {[%emt 0:01:31]} g5 {[%emt 0:03:18]} 21. Bf2 {[%emt 0:00:13]} Qc6 {[%emt 0:02:04]} 22. Qf5 {[%emt 0:13:54]} Ng7 {[%emt 0:03:02]} 23. Qh3 {[%emt 0:01:17]} Qe6 {[%emt 0:12:36]} 24. Qxh6 {[%emt 0:04:36]} Ne4 {[%emt 0:00:33]} 25. Qxe6 {[%emt 0:00:08]} Nxf2+ {[%emt 0:00:04]} 26. Rxf2 {[%emt 0:00:06]} fxe6 {[%emt 0:00:08]} 27. Nd4 {[%emt 0:00:30]} Rac8 {[%emt 0:00:48]} 28. Na4 {[%emt 0:10:40]} Ba7 {[%emt 0:01:17]} 29. Re2 {[%emt 0:00:17]} Kf7 {[%emt 0:01:53]} 30. g3 {[%emt 0:00:57]} Rc4 {[%emt 0:03:56]} 31. Nc3 {[%emt 0:00:19]} Bc5 {[%emt 0:04:19]} 32. Ndb5 {[%emt 0:01:55]} Be7 {[%emt 0:01:17]} 33. Rd3 {[%emt 0:02:09]} Ke8 {[%emt 0:04:11]} 34. Kg2 {[%emt 0:01:02]} g4 {[%emt 0:00:57]} 35. f4 {[%emt 0:01:41]} Nf5 {[%emt 0:00:28]} 36. Nd4 {[%emt 0:00:51]} Ng7 {[%emt 0:00:21]} 37. Nd1 {[%emt 0:00:27]} Bf6 {[%emt 0:01:05]} 38. Nf2 {[%emt 0:00:06]} Rdc8 {[%emt 0:01:01]} 39. Nxg4 {[%emt 0:00:08]} Be7 {[%emt 0:00:08]} 40. Rdd2 {[%emt 0:00:48]} Bc5 {[%emt 0:00:30]} 41. Ne5 {[%emt 0:00:34]} Ra4 {[%emt 0:00:51]} 42. Nb5 {[%emt 0:04:14]} Nf5 {[%emt 0:00:11]} 43. Kf3 {[%emt 0:00:24]} Re4 {[%emt 0:00:49]} 44. Rd3 {[%emt 0:00:56]} Bd6 {[%emt 0:00:14]} 45. Nc3 {[%emt 0:01:40]} Bxe5 {[%emt 0:00:23]} 46. Nxe4 {[%emt 0:01:10]} dxe4+ {[%emt 0:00:04]} 47. Kxe4 {[%emt 0:00:07]} Bg7 {[%emt 0:00:57]} 48. Red2 {[%emt 0:00:14]} Rc4+ {[%emt 0:00:40]} 49. Kf3 {[%emt 0:00:10]} Bf6 {[%emt 0:00:38]} 50. g4 {[%emt 0:00:41]} Nh4+ {[%emt 0:00:30]} 51. Kg3 {[%emt 0:00:08]} Ng6 {[%emt 0:00:13]} 52. Rd6 {[%emt 0:00:36]} Nf8 {[%emt 0:00:48]} 53. Rb6 {[%emt 0:00:38]} Rc7 {[%emt 0:00:27]} 54. h4 {[%emt 0:00:43]} Bd8 {[%emt 0:00:27]} 55. Rb5 {[%emt 0:00:21]} Rh7 {[%emt 0:00:42]} 56. h5 {[%emt 0:00:23]} b6 {[%emt 0:00:04]} 57. Re5 {[%emt 0:01:25]} Bc7 {[%emt 0:00:18]} 58. Re4 {[%emt 0:00:13]} Ke7 {[%emt 0:00:30]} 59. Rc4 {[%emt 0:00:22]} Ke8 {[%emt 0:00:35]} 60. g5 {[%emt 0:00:29]} e5 {[%emt 0:00:29]} 61. Kg4 {[%emt 0:00:11]} exf4 {[%emt 0:00:26]} 62. exf4 {[%emt 0:00:07]} Ne6 {[%emt 0:00:17]} 63. Re4 {[%emt 0:00:12]} Re7 {[%emt 0:00:50]} 64. Rde2 {[%emt 0:00:07]} Nxf4 {[%emt 0:00:59]} 65. Rxe7+ {[%emt 0:00:10]} Kd8 {[%emt 0:00:02]} 66. Re8+ {[%emt 0:00:17]} Kd7 {[%emt 0:00:03]} 67. R2e7+ {[%emt 0:00:06]} 1-0

[Event "10th Iberoamericano-ch 2024"]
[Site "Linares"]
[Date "2024.09.27"]
[Round "4.12"]
[White "Moral Garcia, Serafin"]
[Black "Fier, Alexandr"]
[Result "0-1"]
[ECO "A10"]
[WhiteElo "2262"]
[BlackElo "2551"]
[Annotator "TA"]
[PlyCount "84"]
[EventDate "2024.09.25"]
[EventType "swiss"]
[EventCountry "ESP"]
[SourceTitle "playchess.com"]
[Source "ChessBase"]
[SourceQuality "1"]
[TimeControl "5400+30"]

{[%evp 9,84,-9,29,39,20,31,40,35,57,58,64,62,75,68,135,58,105,63,57,49,62,62,66,62,103,77,96,73,83,85,77,80,89,91,86,75,100,90,85,87,84,71,75,-8,-10,-4,-14,-42,-23,-202,-195,-190,-199,-200,-168,-270,-231,-366,-365,-360,-342,-472,-440,-545,-535,-850,-825,-1212,-1117,-29979,-29980,-29982,-29983,-29988,-29989,-29989,-29990]} 1. c4 {[%emt 0:00:01]} b6 {[%emt 0:00:17]} 2. e4 {[%emt 0:00:20]} e6 {[%emt 0:00:09]} 3. Nc3 {[%emt 0:00:45]} Bb7 {[%emt 0:00:10]} 4. Nge2 {[%emt 0:00:37]} Nf6 {[%emt 0:01:13]} 5. d3 {[%emt 0:00:20]} d5 {[%emt 0:00:05]} 6. cxd5 {[%emt 0:01:00]} exd5 {[%emt 0:00:04]} 7. e5 {[%emt 0:00:17]} Nfd7 {[%emt 0:00:03]} 8. d4 {[%emt 0:00:07] White is slightly better.} c5 {[%emt 0:00:03]} 9. f4 {[%emt 0:00:54]} Na6 {[%emt 0:14:48]} 10. g3 {[%emt 0:04:45]} Nc7 {[%emt 0:00:59]} 11. Bg2 {[%emt 0:01:30]} f5 {[%emt 0:00:09]} (11... Be7 $14) 12. dxc5 {[%emt 0:04:29]} ({Better is} 12. O-O $16) 12... Nxc5 {[%emt 0:01:38]} (12... Bxc5 $14 {is more appropriate.} 13. Nd4 (13. Bxd5 Nxd5 14. Nxd5 O-O $17) (13. Nxd5 Bxd5 14. Bxd5 Nxe5 $11) 13... Bxd4 14. Qxd4 Nc5) 13. Nd4 {[%emt 0:02:17]} Ba6 {[%emt 0:01:32]} 14. Bf1 {[%emt 0:10:34] Against Nd3+} (14. Nxf5 Qd7 15. Nd4 (15. Nxd5 $2 {too greedy.} Nd3+ 16. Kd2 Nxd5 $19) 15... Nd3+ 16. Kd2 Bc5 $17) 14... Bxf1 {[%emt 0:00:09]} 15. Kxf1 {[%emt 0:01:09]} g6 {[%emt 0:00:56]} 16. Be3 {[%emt 0:01:02] b4 is the strong threat.} (16. Kg2 {feels hotter.} Ne4 17. Be3 Bc5 18. Qa4+) 16... Qd7 {[%emt 0:00:29]} 17. Kg2 {[%emt 0:02:12]} Be7 {[%emt 0:00:39]} 18. Qe2 {[%emt 0:02:40]} O-O {[%emt 0:00:09]} 19. Rac1 {[%emt 0:01:53]} Rac8 {[%emt 0:00:17]} 20. Rhd1 {[%emt 0:00:43]} Rfd8 {[%emt 0:00:20]} 21. b4 {[%emt 0:05:42]} N5e6 {[%emt 0:00:48]} 22. a3 {[%emt 0:02:20]} a5 {[%emt 0:02:08]} 23. Nxe6 {[%emt 0:05:04]} (23. Qf2 {is interesting.} axb4 24. axb4 Bxb4 25. Nxe6 Qxe6 26. Bxb6 Re8 27. Na2) 23... Qxe6 {[%emt 0:01:03]} 24. Nb5 {[%emt 0:01:30]} Nxb5 {[%emt 0:00:48]} 25. Qxb5 {[%emt 0:00:23]} Rxc1 {[%emt 0:00:04]} 26. Bxc1 {[%emt 0:03:22]} ({White should try} 26. Rxc1 $16 d4 27. Bxd4) 26... axb4 $11 {[%emt 0:00:08]} 27. axb4 {[%emt 0:00:08]} d4 {[%emt 0:00:03] Repels Be3} 28. Rd2 {[%emt 0:03:43] Inhibits Qa2.} Qb3 {[%emt 0:02:46] Hoping for ...Qc3.} 29. Qd3 {[%emt 0:09:52] [#] This costs White the game.} (29. Rd3 $11 {and White has nothing to worry.} Qxb4 30. Qc6) 29... Qxd3 $1 $19 {[%emt 0:00:30]} ({Don't play} 29... Qxb4 30. Bb2 $17) 30. Rxd3 {[%emt 0:00:00]} Bxb4 {[%emt 0:00:07][%mdl 4096] Endgame. KRB-KRB} 31. Kf3 {[%emt 0:01:12]} Kf7 {[%emt 0:00:12]} 32. g4 {[%emt 0:00:59]} (32. Bb2 $142) 32... Ke6 {[%emt 0:00:34]} 33. h3 {[%emt 0:02:00]} (33. gxf5+ $142 gxf5 (33... Kxf5 $2 34. h4 $19) 34. Rd1) 33... Kd5 {[%emt 0:00:17]} 34. Rd1 {[%emt 0:01:28]} Ra8 {[%emt 0:00:44]} 35. gxf5 {[%emt 0:02:02]} gxf5 {[%emt 0:00:06]} 36. Bb2 {[%emt 0:00:55]} Bc5 {[%emt 0:00:06]} 37. e6 {[%emt 0:00:51]} Re8 {[%emt 0:00:07]} (37... Kxe6 $2 38. Bxd4 Bxd4 39. Rxd4 $19) 38. Rg1 {[%emt 0:00:30]} Rxe6 {[%emt 0:00:07] [#] ...Re3+ would now be deadly.} 39. Rg7 {[%emt 0:00:01]} Re3+ {[%emt 0:00:12] Black mates.} 40. Kf2 {[%emt 0:00:04]} d3 {[%emt 0:00:18]} 41. Kf1 {[%emt 0:00:20]} d2 {[%emt 0:00:11]} 42. Rd7+ {[%emt 0:00:04]} Bd6 {[%emt 0:00:05] Weighted Error Value: White=0.70/Black=0.09 (flawless) .  Loses game:     	White=1     	---        Mistake:       	White=4     	Black=2      Inaccurate:     	White=5     	Black=1      OK:         	White=8     	Black=15     Best:        	White=1     	Black=3      Strong:       	---       	Black=1} 0-1